lending/lending_fUSD_20260209
["ID","MTS","AMOUNT","RATE_DAILY","PERIOD"]
[404844134,1770615038500,-1852.42,0.00039183,2]
[404844135,1770615038509,-150.0,0.0003919,120]
[404844137,1770615038518,-277.0,0.00039227,2]
[404844139,1770615038527,-185.0,0.00039309,2]
[404844141,1770615038536,-182.63662576,0.00039347,13]
[404844143,1770615038545,-522.4,0.00039352,30]
[404844145,1770615038554,-510.0,0.00039386,10]
[404844146,1770615038564,-156.55344811,0.000398,2]
[404844148,1770615038573,-302.47294857,0.000398,2]
[404844149,1770615038583,-323.26075896,0.00039876,2]
[404844150,1770615038592,-152.345,0.00039899,56]
[404844151,1770615038602,-1678.979,0.00039899,56]
[404844152,1770615038612,-30021.11086949,0.00039899,120]
[404844153,1770615038622,-500.0,0.00039899,60]
[404844154,1770615038632,-500.0,0.00039899,60]
[404844155,1770615038641,-500.0,0.00039899,60]
[404844156,1770615038651,-500.0,0.00039899,60]
[404844157,1770615038660,-500.0,0.00039899,60]
[404844158,1770615038669,-500.0,0.00039899,60]
[404844159,1770615038678,-515.9055559,0.00039899,60]
[404844160,1770615038687,-1735.70643258,0.00039899,2]
[404844161,1770615038697,-568.74,0.000399,30]
[404844162,1770615038706,-487.0,0.000399,2]
[404844163,1770615038715,-487.0,0.000399,2]
[404844164,1770615038724,-487.0,0.000399,2]
[404844165,1770615038734,-487.0,0.000399,2]
[404844166,1770615038743,-487.0,0.000399,2]
[404844167,1770615038752,-487.0,0.000399,2]
[404844168,1770615038762,-487.0,0.000399,2]
[404844169,1770615038771,-487.0,0.000399,2]
[404844170,1770615038780,-487.0,0.000399,2]
[404844171,1770615038790,-738.26,0.000399,2]
[404844172,1770615038800,-691.88987432,0.00039978,2]
[404844173,1770615038809,-408.61657874,0.00039978,2]
[404844174,1770615038819,-572.19561471,0.00039978,2]
[404844175,1770615038828,-1078.78219747,0.00039978,2]
[404844176,1770615038837,-853.10618091,0.00039978,2]
[404844177,1770615038847,-305.17282609,0.00039978,2]
[404844178,1770615038856,-881.82002945,0.00039978,2]
[404844179,1770615038866,-1556.71760867,0.00039978,2]
[404844180,1770615038876,-306.34825984,0.00039978,2]
[404844181,1770615038888,-457.40429292,0.00039978,2]
[404844182,1770615038898,-370.28201213,0.00039978,2]
[404844183,1770615038908,-517.04147964,0.00039978,2]
[404844184,1770615038917,-305.32494931,0.00039978,2]
[404844185,1770615038926,-572.19561471,0.00039978,2]
[404844186,1770615038935,-877.76047172,0.00039978,2]
[404844187,1770615038945,-300.0,0.00039978,2]
[404844188,1770615038955,-500.0,0.0004,5]
[404844189,1770615038964,-2164.13,0.0004,90]
[404844190,1770615038974,-150.0,0.0004,120]
[404844191,1770615038983,-501.26387074,0.0004,5]
[404844192,1770615038992,-500.0,0.0004,5]
[404844193,1770615039001,-250.0,0.0004,45]
[404844194,1770615039012,-22499.99,0.0004,120]
[404844195,1770615039023,-11101.54174558,0.0004,120]
[404844196,1770615039032,-12499.99,0.0004,120]
[404844197,1770615039041,-22499.98,0.0004,120]
[404844198,1770615039050,-24999.98,0.0004,120]
[404844199,1770615039060,-274.46,0.0004,120]
[404844200,1770615039069,-22500.0,0.0004,120]
[404844201,1770615039080,-12500.0,0.0004,120]
[404844202,1770615039089,-25000.0,0.0004,120]
[404844203,1770615039098,-22500.0,0.0004,120]
[404844204,1770615039108,-5000.0,0.0004,3]
[404844205,1770615039118,-250.0,0.0004,45]
[404844206,1770615039127,-150.63279502,0.0004,30]
[404844207,1770615039137,-138525.40948965,0.0004,120]
[404844208,1770615039146,-4907.06312106,0.0004,120]
[404844209,1770615039155,-153.0,0.0004,120]
[404844210,1770615039164,-10893.3127493,0.0004,120]
[404844211,1770615039174,-500.78823516,0.0004,5]
[404844212,1770615039184,-500.0,0.0004,5]
[404844213,1770615039193,-500.0,0.0004,5]
[404844214,1770615039202,-500.0,0.0004,5]
[404844215,1770615039212,-166.95992965,0.0004,5]
[404844216,1770615039222,-500.0,0.0004,5]
[404844217,1770615039232,-500.0,0.0004,5]
[404844218,1770615039241,-500.0,0.0004,5]
[404844219,1770615039251,-500.0,0.0004,5]
[404844220,1770615039261,-500.0,0.0004,5]
[404844221,1770615039271,-500.0,0.0004,2]
[404844222,1770615039281,-500.0,0.0004,5]
[404844223,1770615039290,-500.0,0.0004,5]
[404844224,1770615039300,-500.0,0.0004,5]
[404844225,1770615039309,-245.6057209,0.0004,5]
[404844226,1770615039319,-500.0,0.0004,5]
[404844227,1770615039328,-500.0,0.0004,5]
[404844228,1770615039337,-491.56017181,0.0004,5]
[404844229,1770615039347,-153.0,0.0004,120]
[404844230,1770615039356,-500.0,0.0004,5]
[404844231,1770615039365,-3349.5969184,0.00040043,2]
[404844232,1770615039375,-302.47294852,0.00040295,15]
[404844233,1770615039384,-150.0,0.00040301,7]
[404844234,1770615039393,-150.0,0.00040301,7]
[404844235,1770615039403,-150.0,0.00040301,7]
[404844236,1770615039412,-150.0,0.00040301,7]
[404844237,1770615039422,-150.0,0.00040301,7]
[404844238,1770615039431,-152.23094233,0.00040301,7]
[404844239,1770615039440,-150.0,0.00040301,7]
[404844240,1770615039449,-153.7216878,0.00040301,7]
[404844241,1770615039459,-152.50050934,0.00040301,7]
[404844242,1770615039468,-150.0,0.00040301,7]
[404844243,1770615039477,-12500.0,0.00040375,120]
[404844244,1770615039487,-150.0,0.00040406,2]
[404844245,1770615039496,-250.0,0.000405,45]
[404844246,1770615039505,-154.0002243,0.00040521,30]
[404844247,1770615039515,-1222.52,0.00040539,2]
[404844248,1770615039524,-501.70650637,0.00040548,5]
[404844249,1770615039534,-1002.31857723,0.00040548,5]
[404844250,1770615039543,-1000.0,0.00040548,5]
[404844251,1770615039552,-157.67351188,0.00040548,5]
[404844252,1770615039562,-208.13539422,0.00040548,5]
[404844253,1770615039571,-1002.44563879,0.00040548,5]
[404844254,1770615039580,-339.0629942,0.00040548,5]
[404844255,1770615039590,-1003.87713345,0.00040548,5]
[404844256,1770615039600,-1000.0,0.00040548,5]
[404844257,1770615039609,-1000.0,0.00040548,5]
[404844258,1770615039618,-1000.0,0.00040548,2]
[404844259,1770615039628,-995.94024498,0.00040548,5]
[404844260,1770615039638,-1000.0,0.00040548,5]
[404844261,1770615039648,-1000.0,0.00040548,5]
[404844262,1770615039657,-431.50854257,0.00040548,5]
[404844263,1770615039667,-1000.0,0.00040548,5]
[404844264,1770615039677,-500.48740819,0.00040548,5]
[404844265,1770615039687,-1000.0,0.00040548,2]
[404844266,1770615039696,-2543.11208439,0.00040555,28]
[404844267,1770615039706,-150.0,0.00040578,7]
[404844268,1770615039715,-522.4,0.00040626,120]
[404844269,1770615039725,-22500.0,0.0004075,120]
[404844270,1770615039735,-12500.0,0.0004075,120]
[404844271,1770615039746,-25000.0,0.0004075,120]
[404844272,1770615039755,-1079.4,0.00040755,120]
[404844273,1770615039764,-302.47294852,0.0004079,15]
[404844274,1770615039774,-1403.77203837,0.000408,120]
[404844275,1770615039784,-155.43779381,0.00040837,2]
[404844276,1770615039794,-166.66,0.00040845,30]
[404844277,1770615039803,-168.0,0.00040852,2]
[404844278,1770615039813,-150.0,0.00040855,7]
[404844279,1770615039822,-150.0,0.00040895,7]
[404844280,1770615039832,-150.0,0.00040895,7]
[404844281,1770615039842,-168.0,0.00040898,2]
[404844282,1770615039851,-1963.10853824,0.00040906,2]
[404844283,1770615039861,-1079.4,0.00040952,120]
[404844284,1770615039870,-150.0,0.00040994,7]
[404844285,1770615039880,-150.0,0.00040994,7]
[404844286,1770615039894,-250.0,0.00041,45]
[404844287,1770615039904,-1179.45918291,0.00041,30]
[404844288,1770615039913,-153.0,0.00041,120]
[404844289,1770615039922,-234.34,0.00041096,120]
[404844290,1770615039934,-256.53185435,0.00041096,10]
[404844291,1770615039943,-1500.0,0.00041096,10]
[404844292,1770615039953,-1500.0,0.00041096,10]
[404844293,1770615039964,-653.13192661,0.00041096,2]
[404844294,1770615039973,-1002.57509796,0.00041096,10]
[404844295,1770615039982,-513.58819273,0.00041096,10]
[404844296,1770615039991,-1500.0,0.00041096,10]
[404844297,1770615040000,-3349.5969184,0.00041096,2]
[404844298,1770615040010,-168.0,0.00041123,2]
[404844299,1770615040020,-22500.0,0.00041125,120]
[404844301,1770615040029,-12500.0,0.00041125,120]
[404844302,1770615040039,-150.0,0.00041132,30]
[404844303,1770615040048,-1079.4,0.0004115,120]
[404844304,1770615040059,-7033.23,0.000412,2]
[404844305,1770615040068,-187.64871677,0.000412,30]
[404844306,1770615040078,-153.0,0.000412,120]
[404844307,1770615040087,-302.47294852,0.00041285,15]
[404844308,1770615040096,-168.0,0.0004131,2]
[404844309,1770615040106,-150.0,0.0004134,30]
[404844310,1770615040115,-150.0,0.0004134,30]
[404844311,1770615040125,-1079.4,0.00041347,120]
[404844312,1770615040134,-562.0,0.00041385,7]
[404844313,1770615040144,-150.0,0.00041409,30]
[404844314,1770615040153,-1692.63823523,0.00041414,120]
[404844315,1770615040163,-150.0,0.00041488,30]
[404844316,1770615040172,-150.0,0.00041488,30]
[404844317,1770615040182,-1797.18,0.00041494,2]
[404844318,1770615040191,-552.42919056,0.000415,120]
[404844319,1770615040201,-22500.0,0.000415,120]
[404844320,1770615040210,-12500.0,0.000415,120]
[404844321,1770615040220,-203.51,0.000415,120]
[404844322,1770615040230,-1079.4,0.00041544,120]
[404844323,1770615040239,-2000.0,0.00041644,10]
[404844324,1770615040248,-2000.0,0.00041644,10]
[404844325,1770615040257,-2000.0,0.00041644,10]
[404844326,1770615040266,-616.0,0.00041649,2]
[404844327,1770615040275,-3485.0,0.00041649,2]
[404844328,1770615040284,-367.26757822,0.00041661,2]
[404844329,1770615040293,-1843.84672817,0.00041661,2]
[404844330,1770615040302,-8678.01571523,0.00041661,2]
[404844331,1770615040311,-150.0,0.00041686,30]
[404844332,1770615040321,-150.0,0.00041686,30]
[404844333,1770615040330,-150.0,0.00041686,30]
[404844334,1770615040340,-189.66,0.00041691,120]
[404844335,1770615040349,-1079.4,0.00041742,120]
[404844336,1770615040358,-302.47294852,0.0004178,15]
[404844337,1770615040367,-562.0,0.00041782,2]
[404844338,1770615040376,-189.67534468,0.00041791,120]
[404844339,1770615040387,-182.63662576,0.00041839,16]
[404844340,1770615040399,-1204.29,0.00041875,120]
[404844341,1770615040410,-354.4,0.00041875,120]
[404844342,1770615040563,-522.4,0.00041901,120]
[404844343,1770615040573,-1079.4,0.00041939,120]
[404844344,1770615040584,-150.0,0.00041963,30]
[404844345,1770615040595,-331.21756462,0.00041999,120]
[404844346,1770615040605,-4544.79454758,0.00042,120]
[404844347,1770615040614,-333.7117022,0.00042,120]
[404844348,1770615040625,-151.38916921,0.00042,30]
[404844349,1770615040635,-150.0,0.00042081,30]
[404844350,1770615040646,-150.0,0.00042081,30]
[404844351,1770615040656,-153.0,0.000421,120]
[404844352,1770615040666,-1079.4,0.00042136,120]
[404844353,1770615040676,-3349.5969184,0.0004215,2]
[404844354,1770615040688,-1963.10853824,0.00042172,2]
[404844355,1770615040699,-2500.0,0.00042192,10]
[404844356,1770615040710,-1002.336663,0.00042192,10]
[404844357,1770615040720,-2512.94110038,0.00042192,10]
[404844358,1770615040732,-170.73,0.0004223,14]
[404844359,1770615040742,-150.0,0.0004224,30]
[404844360,1770615040753,-302.47294852,0.00042276,15]
[404844361,1770615040763,-153.0,0.000423,120]
[404844362,1770615040772,-151.0,0.00042316,120]
[404844363,1770615040782,-151.0,0.00042316,120]
[404844364,1770615040791,-251.165894,0.00042316,120]
[404844365,1770615040800,-151.0,0.00042316,120]
[404844366,1770615040810,-151.0,0.00042316,120]
[404844367,1770615040823,-151.0,0.00042316,120]
[404844368,1770615040833,-151.0,0.00042316,120]
[404844369,1770615040843,-202.24707,0.00042316,120]
[404844370,1770615040852,-151.0,0.00042316,120]
[404844371,1770615040868,-257.651606,0.00042316,120]
[404844372,1770615040877,-228.686269,0.00042316,120]
[404844373,1770615040888,-151.0,0.00042316,120]
[404844374,1770615040898,-156.016667,0.00042316,120]
[404844375,1770615040907,-151.0,0.00042316,120]
[404844376,1770615040916,-243.55594,0.00042316,120]
[404844377,1770615040926,-151.0,0.00042316,31]
[404844378,1770615040935,-151.0,0.00042316,120]
[404844379,1770615040947,-151.0,0.00042316,31]
[404844380,1770615040958,-151.0,0.00042316,120]
[404844381,1770615040968,-151.0,0.00042316,120]
[404844382,1770615040977,-151.0,0.00042316,120]
[404844383,1770615040987,-177.909811,0.00042316,7]
[404844384,1770615040996,-177.909811,0.00042316,7]
[404844385,1770615041005,-177.909811,0.00042316,7]
[404844386,1770615041015,-177.909811,0.00042316,7]
[404844387,1770615041024,-151.0,0.00042316,120]
[404844388,1770615041034,-229.055541,0.00042316,120]
[404844389,1770615041044,-1079.4,0.00042334,120]
[404844390,1770615041054,-175.89,0.00042349,14]
[404844391,1770615041063,-150.0,0.00042378,30]
[404844392,1770615041073,-150.0,0.00042378,30]
[404844393,1770615041082,-150.0,0.00042378,30]
[404844394,1770615041091,-150.0,0.00042378,30]
[404844395,1770615041100,-562.0,0.00042393,120]
[404844396,1770615041110,-168.0,0.00042408,7]
[404844397,1770615041119,-505.27,0.00042411,120]
[404844398,1770615041129,-500.0,0.00042438,120]
[404844399,1770615041139,-5000.0,0.00042466,120]
[404844400,1770615041148,-157.19768788,0.000425,120]
[404844401,1770615041157,-150.0,0.00042517,30]
[404844402,1770615041166,-1079.4,0.00042531,120]
[404844403,1770615041175,-500.0,0.00042575,120]
[404844404,1770615041184,-7033.23,0.000426,2]
[404844405,1770615041194,-3000.0,0.000426,7]
[404844406,1770615041204,-1200.0,0.00042616,120]
[404844407,1770615041213,-5000.0,0.00042665,120]
[404844408,1770615041222,-150.0,0.00042675,30]
[404844409,1770615041231,-150.0,0.00042675,30]
[404844410,1770615041241,-568.74,0.000427,30]
[404844411,1770615041250,-500.0,0.00042712,120]
[404844412,1770615041259,-1079.4,0.00042728,120]
[404844413,1770615041268,-2500.0,0.0004274,7]
[404844414,1770615041277,-3000.0,0.0004274,10]
[404844415,1770615041287,-562.0,0.00042759,2]
[404844416,1770615041297,-302.47294852,0.00042771,15]
[404844417,1770615041306,-168.0,0.00042783,2]
[404844418,1770615041315,-150.0,0.00042794,30]
[404844419,1770615041324,-1023.29,0.000428,120]
[404844420,1770615041333,-600.0,0.000428,120]
[404844421,1770615041342,-200.0,0.000428,60]
[404844422,1770615041352,-3295.0486665,0.000428,30]
[404844423,1770615041361,-132973.08067199,0.000428,7]
[404844424,1770615041370,-151.0,0.000428,120]
[404844425,1770615041379,-5000.0,0.000428,120]
[404844426,1770615041388,-5000.0,0.000428,120]
[404844427,1770615041397,-5000.0,0.000428,120]
[404844428,1770615041406,-5000.0,0.000428,120]
[404844429,1770615041415,-5000.0,0.000428,120]
[404844430,1770615041424,-5000.0,0.000428,120]
[404844431,1770615041434,-5000.0,0.000428,120]
[404844432,1770615041443,-5000.0,0.000428,120]
[404844433,1770615041452,-5000.0,0.000428,120]
[404844434,1770615041461,-5000.0,0.000428,120]
[404844435,1770615041470,-5000.0,0.000428,120]
[404844436,1770615041479,-5000.0,0.000428,120]
[404844437,1770615041489,-3085.669753,0.000428,120]
[404844438,1770615041498,-1339.249876,0.000428,120]
[404844439,1770615041507,-1339.249876,0.000428,120]
[404844440,1770615041516,-500.0,0.00042811,60]
[404844441,1770615041526,-500.0,0.00042811,60]
[404844442,1770615041535,-512.2609153,0.00042847,30]
[404844443,1770615041544,-500.0,0.00042847,120]
[404844444,1770615041553,-500.0,0.00042847,19]
[404844445,1770615041562,-500.0,0.00042849,120]
[404844446,1770615041572,-500.0,0.00042855,12]
[404844447,1770615041580,-194.0,0.00042855,12]
[404844448,1770615041589,-259.57383222,0.000429,30]
[404844449,1770615041599,-1079.4,0.00042926,120]
[404844450,1770615041608,-416.0,0.00042937,12]
[404844451,1770615041618,-278.9473497,0.00042986,120]
[404844452,1770615041627,-456.1643411,0.00042998,30]
[404844453,1770615041636,-807.95701726,0.00043,3]
[404844454,1770615041645,-240.75130676,0.00043,120]
[404844455,1770615041654,-48974.83269297,0.00043,2]
[404844456,1770615041664,-162.46228869,0.00043,30]
[404844457,1770615041673,-695.18135714,0.00043,120]
[404844458,1770615041682,-277.0,0.00043019,12]
[404844459,1770615041692,-284.55701181,0.00043037,14]
[404844460,1770615041701,-150.0,0.0004307,30]
[404844461,1770615041711,-150.0,0.0004307,30]
[404844462,1770615041720,-150.0,0.0004307,30]
[404844463,1770615041730,-168.0,0.00043092,2]
[404844464,1770615041740,-1405.99823324,0.000431,120]
[404844465,1770615041749,-153.0,0.000431,120]
[404844466,1770615041759,-2842.69435208,0.00043116,2]
[404844467,1770615041768,-1079.4,0.00043123,120]
[404844468,1770615041778,-1521.40464906,0.0004313,30]
[404844469,1770615041787,-182.58608521,0.00043151,30]
[404844470,1770615041796,-166.0,0.00043163,16]
[404844471,1770615041806,-522.4,0.00043175,120]
[404844472,1770615041815,-3349.5969184,0.00043203,2]
[404844473,1770615041825,-8419.51515041,0.0004321,120]
[404844474,1770615041834,-756.862972,0.00043221,30]
[404844475,1770615041843,-302.47294852,0.00043266,15]
[404844476,1770615041853,-150.0,0.00043268,30]
[404844477,1770615041863,-150.0,0.00043268,30]
[404844478,1770615041872,-1000.0,0.00043288,30]
[404844479,1770615041884,-3500.0,0.00043288,10]
[404844480,1770615041897,-1079.4,0.0004332,120]
[404844481,1770615041909,-170.73,0.00043328,14]
[404844482,1770615041919,-150.0,0.00043347,30]
[404844483,1770615041930,-51689.1010042,0.00043374,2]
[404844484,1770615041941,-173.2883026,0.00043374,2]
[404844485,1770615041953,-42351.5486685,0.00043374,2]
[404844486,1770615041962,-12667.7553281,0.00043374,2]
[404844487,1770615041973,-43360.355221,0.00043374,2]
[404844488,1770615041984,-175.89,0.00043389,14]
[404844489,1770615041995,-883.69018639,0.000434,120]
[404844490,1770615042006,-150.0,0.00043417,30]
[404844491,1770615042016,-150.0,0.00043417,30]
[404844492,1770615042026,-1963.10853824,0.00043437,2]
[404844493,1770615042036,-828.0,0.0004349,16]
[404844494,1770615042046,-153.0,0.000435,120]
[404844495,1770615042057,-1079.4,0.00043518,120]
[404844496,1770615042068,-1000.0,0.00043562,30]
[404844497,1770615042078,-5102.17,0.00043595,120]
[404844498,1770615042087,-2000.0,0.000436,2]
[404844499,1770615042097,-211.45756918,0.000436,120]
[404844500,1770615042108,-150.0,0.00043624,30]
[404844501,1770615042118,-168.0,0.00043691,2]
[404844502,1770615042128,-316.68272132,0.000437,120]
[404844503,1770615042138,-1079.4,0.00043715,120]
[404844504,1770615042148,-10819.21830258,0.0004375,120]
[404844505,1770615042158,-302.47294852,0.00043761,15]
[404844506,1770615042167,-150.0,0.00043763,30]
[404844507,1770615042177,-150.0,0.00043763,30]
[404844508,1770615042186,-533.16956705,0.0004377,120]
[404844509,1770615042196,-622.84179704,0.00043772,30]
[404844510,1770615042206,-250.0,0.00043772,30]
[404844511,1770615042217,-250.0,0.00043772,30]
[404844512,1770615042227,-250.0,0.00043772,30]
[404844513,1770615042236,-250.0,0.00043772,30]
[404844514,1770615042245,-250.0,0.00043772,30]
[404844515,1770615042254,-250.0,0.00043772,30]
[404844516,1770615042263,-250.0,0.00043772,30]
[404844517,1770615042274,-250.0,0.00043772,30]
[404844518,1770615042283,-250.0,0.00043772,30]
[404844519,1770615042292,-500.0,0.00043772,30]
[404844520,1770615042302,-200.0,0.00043772,30]
[404844521,1770615042312,-259.48658918,0.00043772,30]
[404844522,1770615042321,-250.0,0.00043772,30]
[404844523,1770615042331,-207.4,0.00043772,30]
[404844524,1770615042340,-500.0,0.00043772,30]
[404844525,1770615042350,-250.0,0.00043772,30]
[404844526,1770615042359,-215.0738,0.00043772,30]
[404844528,1770615042368,-500.0,0.00043772,30]
[404844530,1770615042378,-250.0,0.00043772,30]
[404844532,1770615042388,-223.0315306,0.00043772,30]
[404844534,1770615042397,-500.0,0.00043772,30]
[404844535,1770615042406,-250.0,0.00043772,30]
[404844537,1770615042416,-500.0,0.00043772,30]
[404844538,1770615042426,-231.28369723,0.00043772,30]
[404844539,1770615042436,-250.0,0.00043772,30]
[404844541,1770615042446,-500.0,0.00043772,30]
[404844543,1770615042456,-239.84119403,0.00043772,30]
[404844544,1770615042465,-250.0,0.00043772,30]
[404844546,1770615042474,-500.0,0.00043772,30]
[404844548,1770615042482,-250.0,0.00043772,30]
[404844550,1770615042491,-340.54674987,0.00043772,30]
[404844552,1770615042501,-250.0,0.00043772,30]
[404844553,1770615042510,-500.0,0.00043772,30]
[404844554,1770615042519,-250.0,0.00043772,30]
[404844555,1770615042528,-269.82892784,0.00043772,30]
[404844556,1770615042538,-500.0,0.00043772,30]
[404844557,1770615042547,-250.0,0.00043772,30]
[404844558,1770615042558,-500.0,0.00043772,30]
[404844559,1770615042569,-250.0,0.00043772,30]
[404844560,1770615042578,-500.0,0.00043772,30]
[404844561,1770615042589,-250.0,0.00043772,30]
[404844562,1770615042597,-500.0,0.00043772,30]
[404844563,1770615042607,-250.0,0.00043772,30]
[404844564,1770615042616,-500.0,0.00043772,30]
[404844565,1770615042625,-250.0,0.00043772,30]
[404844566,1770615042635,-250.0,0.00043772,30]
[404844567,1770615042645,-5000.0,0.00043772,30]
[404844568,1770615042655,-250.0,0.00043772,30]
[404844569,1770615042664,-662.1223725,0.00043772,30]
[404844570,1770615042674,-250.0,0.00043772,30]
[404844571,1770615042683,-500.0,0.00043772,30]
[404844572,1770615042693,-250.0,0.00043772,30]
[404844573,1770615042702,-500.0,0.00043772,30]
[404844574,1770615042711,-250.0,0.00043772,30]
[404844575,1770615042720,-500.0,0.00043772,30]
[404844576,1770615042729,-289.30706715,0.00043772,30]
[404844577,1770615042739,-250.0,0.00043772,30]
[404844578,1770615042748,-500.0,0.00043772,30]
[404844579,1770615042757,-250.0,0.00043772,30]
[404844580,1770615042766,-250.0,0.00043772,30]
[404844581,1770615042775,-500.0,0.00043772,30]
[404844582,1770615042784,-250.0,0.00043772,30]
[404844583,1770615042793,-250.0,0.00043772,30]
[404844584,1770615042802,-250.0,0.00043772,30]
[404844585,1770615042812,-250.0,0.00043772,30]
[404844586,1770615042821,-500.0,0.00043772,30]
[404844587,1770615042830,-250.0,0.00043772,30]
[404844588,1770615042840,-250.0,0.00043772,30]
[404844589,1770615042849,-250.0,0.00043772,30]
[404844590,1770615042858,-250.0,0.00043772,30]
[404844591,1770615042867,-500.0,0.00043772,30]
[404844592,1770615042877,-250.0,0.00043772,30]
[404844593,1770615042889,-250.0,0.00043772,30]
[404844594,1770615042899,-250.0,0.00043772,30]
[404844595,1770615042909,-250.0,0.00043772,30]
[404844596,1770615042918,-250.0,0.00043772,30]
[404844597,1770615042929,-250.0,0.00043772,30]
[404844598,1770615042975,-250.0,0.00043772,30]
[404844599,1770615042986,-250.0,0.00043772,30]
[404844600,1770615042996,-250.0,0.00043772,30]
[404844601,1770615043006,-250.0,0.00043772,30]
[404844602,1770615043016,-250.0,0.00043772,30]
[404844603,1770615043025,-250.0,0.00043772,30]
[404844604,1770615043034,-250.0,0.00043772,30]
[404844605,1770615043043,-250.0,0.00043772,30]
[404844606,1770615043054,-250.0,0.00043772,30]
[404844607,1770615043064,-250.0,0.00043772,30]
[404844608,1770615043073,-250.0,0.00043772,30]
[404844609,1770615043084,-250.0,0.00043772,30]
[404844610,1770615043093,-250.0,0.00043772,30]
[404844611,1770615043104,-250.0,0.00043772,30]
[404844612,1770615043113,-327.68260501,0.00043772,30]
[404844613,1770615043122,-250.0,0.00043772,30]
[404844614,1770615043131,-250.0,0.00043772,30]
[404844615,1770615043140,-250.0,0.00043772,30]
[404844616,1770615043150,-250.0,0.00043772,30]
[404844617,1770615043161,-250.0,0.00043772,30]
[404844618,1770615043171,-250.0,0.00043772,30]
[404844619,1770615043181,-250.0,0.00043772,30]
[404844620,1770615043191,-250.0,0.00043772,30]
[404844621,1770615043201,-250.0,0.00043772,30]
[404844622,1770615043212,-250.0,0.00043772,30]
[404844623,1770615043224,-250.0,0.00043772,30]
[404844624,1770615043234,-261.1907146,0.00043772,30]
[404844625,1770615043243,-250.0,0.00043772,30]
[404844626,1770615043254,-250.0,0.00043772,30]
[404844627,1770615043263,-250.0,0.00043772,30]
[404844629,1770615043274,-254.89289563,0.00043772,30]
[404844631,1770615043284,-250.0,0.00043772,30]
[404844634,1770615043296,-250.0,0.00043772,30]
[404844636,1770615043305,-500.0,0.00043772,30]
[404844638,1770615043315,-500.0,0.00043773,10]
[404844640,1770615043324,-500.0,0.00043773,3]
[404844642,1770615043335,-500.0,0.00043773,10]
[404844644,1770615043345,-500.0,0.00043773,10]
[404844646,1770615043355,-500.0,0.00043773,10]
[404844648,1770615043366,-489.54842128,0.00043773,10]
[404844649,1770615043375,-500.0,0.00043773,10]
[404844650,1770615043385,-500.0,0.00043773,10]
[404844651,1770615043394,-500.0,0.00043773,10]
[404844652,1770615043403,-500.0,0.00043773,10]
[404844653,1770615043414,-339.29096612,0.00043773,10]
[404844654,1770615043424,-502.73930128,0.00043773,10]
[404844655,1770615043433,-500.0,0.00043773,10]
[404844656,1770615043442,-500.82285468,0.00043773,10]
[404844657,1770615043452,-160.40758038,0.00043773,10]
[404844658,1770615043461,-500.0,0.00043773,10]
[404844659,1770615043470,-160.22890583,0.00043773,10]
[404844660,1770615043480,-166.16057296,0.00043773,10]
[404844661,1770615043489,-500.0,0.00043773,10]
[404844662,1770615043500,-161.64701546,0.00043773,5]